bitfinex/quotes_BTCUSD_20251217
["timestamp","ask_amount","ask_price","bid_price","bid_amount"]
[1765979444172,0.2907,87575.0,87572.0,0.23980267]
[1765979444424,0.51907846,87574.0,87573.0,0.07412]
[1765979444623,0.2907,87573.0,87572.0,0.00161287]
[1765979444784,0.53049478,87575.0,87574.0,0.05701006]
[1765979444993,0.22838089,87573.0,87572.0,0.00161287]
[1765979445396,0.2907,87577.0,87574.0,0.01141891]
[1765979445611,0.30211865,87576.0,87572.0,0.00261287]
[1765979445830,0.02253744,87575.0,87572.0,0.00161287]
[1765979446030,0.02253744,87575.0,87573.0,0.22838005]
[1765979446231,0.2907,87573.0,87572.0,0.00261287]
[1765979446606,0.2907,87573.0,87572.0,0.05213287]
[1765979446807,0.51908089,87573.0,87572.0,0.001]
[1765979447410,0.5190861,87571.0,87570.0,0.0184]
[1765979448389,0.5467661,87571.0,87570.0,0.0184]
[1765979448515,0.5467661,87571.0,87570.0,0.0194]
[1765979449141,0.5744461,87571.0,87570.0,0.0194]
[1765979449473,0.5744461,87571.0,87570.0,0.0203059]
[1765979449622,0.5467661,87571.0,87570.0,0.0203059]
[1765979450042,0.5744461,87571.0,87570.0,0.0019059]
[1765979450498,2.5744461,87571.0,87570.0,0.0019059]
[1765979450755,2.5744461,87571.0,87562.0,0.0184]
[1765979450756,0.51910697,87563.0,87562.0,0.0184]
[1765979450894,0.51910697,87563.0,87562.0,0.01851272]
[1765979452751,0.2907,87563.0,87562.0,0.01851272]
[1765979452957,0.51910697,87563.0,87562.0,0.01851272]
[1765979453927,0.2907,87563.0,87562.0,0.06803272]
[1765979454130,0.2907,87563.0,87562.0,0.2964423]
[1765979454332,0.2907,87563.0,87562.0,0.29805517]
[1765979454751,0.2907,87563.0,87562.0,0.35506523]
[1765979454953,0.22839408,87568.0,87565.0,0.23981964]
[1765979455156,0.01141995,87566.0,87563.0,0.03445]
[1765979455336,0.2284041,87565.0,87564.0,0.05701006]
[1765979455555,0.01141995,87566.0,87565.0,0.05701006]
[1765979455761,0.00099999,87570.0,87569.0,0.22839132]
[1765979456057,0.51908871,87570.0,87569.0,0.18065006]
[1765979456257,0.51908871,87570.0,87569.0,0.10653006]
[1765979456477,0.2907,87567.0,87565.0,0.24143262]
[1765979456681,0.51909661,87567.0,87566.0,0.05701006]
[1765979456839,0.2907,87567.0,87566.0,0.35365202]
[1765979457041,0.2907,87567.0,87566.0,0.41066208]
[1765979457374,0.01141852,87577.0,87573.0,0.01141904]
[1765979457542,0.2907,87575.0,87574.0,0.07537006]
[1765979458013,0.2907,87575.0,87574.0,0.01836]
[1765979458014,0.51907567,87575.0,87574.0,0.01836]
[1765979458229,0.2907,87575.0,87574.0,0.37199115]
[1765979458434,0.01141852,87577.0,87574.0,0.01997287]
[1765979458595,0.51907567,87575.0,87574.0,0.00140354]
[1765979458797,0.51907567,87575.0,87565.0,0.01142008]
[1765979458798,0.23981926,87566.0,87565.0,0.04952]
[1765979458974,0.22840697,87563.0,87562.0,0.0003627]
[1765979459332,0.22840697,87563.0,87562.0,0.0187227]
[1765979459669,0.22840697,87563.0,87562.0,0.02012624]
[1765979460471,0.51910697,87563.0,87562.0,0.02012624]
[1765979461081,0.00099999,87570.0,87569.0,0.04952]
[1765979461283,0.49671843,87590.0,87569.0,0.04952]
[1765979461284,0.22834297,87588.0,87587.0,0.12364]
[1765979461484,0.51904297,87588.0,87587.0,0.06788]
[1765979461989,0.51904297,87588.0,87587.0,0.01836]
[1765979462226,0.22837307,87576.0,87575.0,0.03445]
[1765979462480,0.22838871,87570.0,87569.0,0.00140354]
[1765979462676,0.22838871,87570.0,87569.0,0.01976354]
[1765979463279,0.01141878,87575.0,87569.0,0.01976354]
[1765979463280,0.00099999,87580.0,87579.0,0.12364]
[1765979463480,0.002,87588.0,87586.0,0.05701006]
[1765979463481,0.2907,87587.0,87586.0,0.05701006]
[1765979463760,0.51904591,87587.0,87586.0,0.19901006]
[1765979464383,0.2907,87587.0,87586.0,0.142]
[1765979464597,0.01341708,87588.0,87586.0,0.142]
[1765979464598,0.53045997,87588.0,87587.0,0.11501]
[1765979464795,0.53045997,87588.0,87587.0,0.17202006]
[1765979464998,0.2907,87588.0,87587.0,0.11641354]
[1765979465318,0.23974828,87592.0,87591.0,0.17202006]
[1765979465495,0.23974828,87592.0,87591.0,0.04602]
[1765979465693,0.002,87588.0,87587.0,0.0584136]
[1765979465918,0.003,87588.0,87587.0,0.34475792]
[1765979466122,0.002,87588.0,87587.0,0.34475792]
[1765979466323,0.2907,87595.0,87594.0,0.11501]
[1765979466324,0.51902456,87595.0,87594.0,0.11501]
[1765979466520,0.51902456,87595.0,87594.0,0.00011272]
[1765979466724,0.51902456,87595.0,87594.0,0.01847272]
[1765979468255,0.54670456,87595.0,87594.0,0.01847272]
[1765979468458,0.57438456,87595.0,87594.0,2.72e-06]
[1765979468661,0.57538456,87595.0,87594.0,2.72e-06]
[1765979468864,2.57538456,87595.0,87594.0,2.72e-06]
[1765979469455,2.62540295,87595.0,87594.0,2.72e-06]
[1765979470257,2.65428904,87595.0,87594.0,2.72e-06]
[1765979470456,2.65628904,87595.0,87594.0,2.72e-06]
[1765979472232,2.72699587,87595.0,87594.0,2.72e-06]
[1765979472647,2.65628904,87595.0,87594.0,2.72e-06]
[1765979472799,2.67264904,87595.0,87594.0,2.72e-06]
[1765979472998,2.67664904,87595.0,87594.0,2.72e-06]
[1765979473228,0.51910697,87563.0,87558.0,0.011421]
[1765979473443,0.51910697,87563.0,87562.0,0.00036282]
[1765979473654,0.51910697,87563.0,87562.0,0.00176636]
[1765979474525,0.51910697,87563.0,87562.0,0.05877642]
[1765979474728,0.51910697,87563.0,87562.0,0.00176636]
[1765979475577,0.2907,87563.0,87562.0,0.17416642]
[1765979475781,0.51910697,87563.0,87562.0,0.00176636]
[1765979475952,0.51910697,87563.0,87562.0,0.00136282]
[1765979476370,0.51910697,87563.0,87562.0,0.00036282]
[1765979476566,0.51910697,87563.0,87562.0,0.11715636]
[1765979476790,0.51910697,87563.0,87562.0,0.11915636]
[1765979476947,0.51910697,87563.0,87562.0,0.04932636]
[1765979477354,0.51910697,87563.0,87562.0,0.10633642]
[1765979477554,0.51910697,87563.0,87562.0,0.02208636]
[1765979477814,0.51910697,87563.0,87562.0,0.07709642]
[1765979478140,0.51910697,87563.0,87562.0,0.13547636]
[1765979478570,0.51910697,87563.0,87562.0,0.13647636]
[1765979478783,0.51910697,87563.0,87562.0,0.19348642]
[1765979478998,0.51910697,87563.0,87562.0,0.06664636]
[1765979479451,0.51910697,87563.0,87562.0,0.02108636]
[1765979479838,0.51910697,87563.0,87562.0,0.00136282]
[1765979480053,0.51910697,87563.0,87562.0,0.02072282]
[1765979480803,0.51910697,87563.0,87562.0,0.01972282]
[1765979480804,0.54678697,87563.0,87562.0,0.01972282]
[1765979481236,0.54678697,87563.0,87562.0,0.01872282]
[1765979481445,0.54678697,87563.0,87562.0,0.00036282]
[1765979482133,2.57446697,87563.0,87562.0,2.82e-06]
[1765979482696,2.62448536,87563.0,87562.0,2.82e-06]
[1765979483523,2.62648536,87563.0,87562.0,2.82e-06]
[1765979483910,2.62450884,87554.0,87553.0,0.19461322]
[1765979484138,2.62450884,87554.0,87553.0,1e-08]
[1765979484139,2.64282884,87554.0,87553.0,1e-08]
[1765979484510,2.64282884,87554.0,87527.0,0.0004]
[1765979484511,0.6022383,87528.0,87527.0,0.0004]
[1765979484732,2.6022383,87528.0,87527.0,0.00077547]
[1765979484944,2.6022383,87528.0,87513.0,0.01832]
[1765979484945,0.51923486,87514.0,87513.0,0.01832]
[1765979485121,0.51924792,87509.0,87508.0,0.1145]
[1765979485521,0.51924792,87509.0,87508.0,0.0004]
[1765979486489,0.2907,87509.0,87508.0,0.0004]
[1765979486831,0.51924792,87509.0,87508.0,0.0004]
[1765979487469,0.2907,87509.0,87508.0,0.11719354]
[1765979488237,0.2907,87509.0,87508.0,0.17430344]
[1765979488478,0.2907,87509.0,87508.0,0.11719354]
[1765979489079,0.2907,87509.0,87508.0,0.11819354]
[1765979489441,0.2907,87509.0,87508.0,0.05991344]
[1765979489722,0.2907,87509.0,87508.0,0.02112354]
[1765979489927,0.2907,87509.0,87508.0,0.13651354]
[1765979490177,0.2907,87509.0,87508.0,0.0014]
[1765979490383,0.2907,87509.0,87500.0,0.028571]
[1765979490384,0.51926881,87501.0,87500.0,0.028571]
[1765979490580,0.2907,87501.0,87500.0,0.20008454]
[1765979491116,0.2907,87501.0,87500.0,0.25719444]
[1765979491337,0.2907,87501.0,87500.0,0.08469454]
[1765979491683,0.2907,87501.0,87500.0,0.08569454]
[1765979491965,0.2907,87501.0,87500.0,0.13025454]
[1765979492120,0.2907,87501.0,87500.0,0.20008454]
[1765979492322,0.2907,87501.0,87500.0,0.05033454]
[1765979492547,0.2907,87501.0,87500.0,0.04833454]
[1765979492950,0.2907,87501.0,87500.0,0.16372454]
[1765979493324,0.2907,87501.0,87500.0,0.05033454]
[1765979493728,0.2907,87501.0,87500.0,0.046931]
[1765979493950,0.2907,87501.0,87500.0,0.047931]
[1765979494268,0.31838,87501.0,87500.0,0.046931]
[1765979494622,0.34606,87501.0,87500.0,0.046931]
[1765979494816,0.34606,87501.0,87500.0,0.029571]
[1765979495017,0.54695142,87500.0,87499.0,1e-06]
[1765979495427,0.2907,87500.0,87499.0,0.12409454]
[1765979495907,0.2907,87500.0,87499.0,0.04936454]
[1765979496084,0.2917,87501.0,87500.0,0.15913]
[1765979496292,0.2917,87501.0,87500.0,0.03644]
[1765979496693,0.22857142,87500.0,87499.0,1e-06]
[1765979496871,0.22857142,87500.0,87499.0,0.0571109]
[1765979497060,0.22857142,87500.0,87499.0,1e-06]
[1765979497484,0.22957142,87500.0,87499.0,0.122691]
[1765979497656,0.22857142,87500.0,87499.0,0.122691]
[1765979498104,0.22857142,87500.0,87499.0,1e-06]
[1765979498576,0.53069666,87502.0,87501.0,0.15913]
[1765979499017,0.22856325,87504.0,87501.0,0.15913]
[1765979499018,0.2907,87504.0,87501.0,0.16053354]
[1765979499241,0.2907,87504.0,87503.0,0.12269]
[1765979499691,0.2907,87504.0,87503.0,0.04796]
[1765979499896,0.51926359,87503.0,87502.0,0.01836]
[1765979500299,0.2907,87503.0,87502.0,0.14101]
[1765979500500,0.2907,87503.0,87502.0,0.14288614]
[1765979500818,0.2907,87503.0,87502.0,0.19999604]
[1765979501264,0.51926359,87503.0,87502.0,0.14288614]
[1765979501467,0.51926359,87503.0,87502.0,0.20099604]
[1765979501700,0.51926359,87503.0,87502.0,0.02019614]
[1765979501854,0.54694359,87503.0,87502.0,0.00187614]
[1765979502052,0.51926359,87503.0,87502.0,0.00287614]
[1765979502873,0.51926359,87503.0,87502.0,0.00387614]
[1765979503274,0.51926359,87503.0,87502.0,0.00287614]
[1765979503960,0.23998804,87505.0,87502.0,0.00187614]
[1765979504173,0.23998627,87505.0,87504.0,0.04796]
[1765979504373,0.53068627,87505.0,87504.0,0.16206]
[1765979504820,0.53068627,87505.0,87504.0,0.1141]
[1765979506076,0.53068627,87505.0,87504.0,0.1151]
[1765979506971,0.53068627,87505.0,87504.0,0.1141]
[1765979507199,0.53268627,87505.0,87504.0,0.1141]
[1765979507415,0.53168627,87505.0,87504.0,0.1141]
[1765979507650,0.53068627,87505.0,87504.0,0.1141]
[1765979508096,0.01342724,87510.0,87504.0,0.1141]
[1765979508097,0.00099999,87520.0,87513.0,0.12269]
[1765979508325,0.00099999,87520.0,87513.0,0.19956344]
[1765979508326,0.2907,87515.0,87513.0,0.19956344]
[1765979508571,0.54214782,87514.0,87513.0,0.05851344]
[1765979508719,0.51961038,87514.0,87513.0,0.07687344]
[1765979509529,0.51961038,87514.0,87513.0,0.06772354]
[1765979509730,0.29107552,87514.0,87513.0,0.42810091]
[1765979510333,0.29107552,87514.0,87513.0,0.37099101]
[1765979510538,0.29107552,87514.0,87513.0,0.42810091]
[1765979511416,0.29107552,87514.0,87513.0,0.37099101]
[1765979511614,0.00037552,87514.0,87513.0,0.42810091]
[1765979513194,0.00037552,87514.0,87513.0,0.43010091]
[1765979513440,0.00037552,87514.0,87513.0,0.25855354]
[1765979513671,0.00037552,87514.0,87513.0,0.48709101]
[1765979513897,0.00037552,87514.0,87513.0,0.48909101]
[1765979514103,0.00037552,87514.0,87513.0,0.49009101]
[1765979514497,0.00037552,87514.0,87513.0,0.49109101]
[1765979514926,0.22891038,87514.0,87513.0,0.00640354]
[1765979515124,0.22891038,87514.0,87513.0,0.14035553]
[1765979515324,0.22891038,87514.0,87513.0,0.13535553]
[1765979515514,0.22891038,87514.0,87513.0,0.02125553]
[1765979515650,0.22891038,87514.0,87513.0,0.08136543]
[1765979515851,0.22891038,87514.0,87513.0,0.02425553]
[1765979516055,0.22891038,87514.0,87513.0,0.20105543]
[1765979516472,0.22891038,87514.0,87513.0,0.20405543]
[1765979516699,0.22891038,87514.0,87513.0,0.14694553]
[1765979516947,0.22891038,87514.0,87513.0,0.25904553]
[1765979517140,0.22891038,87514.0,87513.0,0.26004553]
[1765979517514,0.22891038,87514.0,87513.0,0.13735553]
[1765979518691,0.22891038,87514.0,87513.0,0.08036543]
[1765979518932,0.22891038,87514.0,87513.0,0.02325553]
[1765979519164,0.22891038,87514.0,87513.0,0.08036543]
[1765979519562,0.22891038,87514.0,87513.0,0.02325553]
[1765979519977,0.22891038,87514.0,87513.0,0.13735553]
[1765979520249,0.22891038,87514.0,87513.0,0.02325553]
[1765979520458,0.22891038,87514.0,87513.0,0.13735553]
[1765979520661,0.22891038,87514.0,87513.0,0.02325553]
[1765979520865,0.51961038,87514.0,87513.0,0.02325553]
[1765979521724,0.57497038,87514.0,87513.0,0.00253199]
[1765979521932,0.57497038,87514.0,87513.0,1.99e-06]
[1765979522102,0.51961038,87514.0,87513.0,1.99e-06]
[1765979522672,0.00037552,87514.0,87513.0,0.35263101]
[1765979522877,0.00037552,87514.0,87513.0,0.23819354]
[1765979523087,0.00037552,87514.0,87513.0,0.46673101]
[1765979523311,0.00137552,87514.0,87513.0,0.46673101]
[1765979523512,0.00137552,87514.0,87513.0,0.96673101]
[1765979524574,0.00037552,87514.0,87513.0,0.96673101]
[1765979525014,0.00037552,87514.0,87513.0,0.96773101]
[1765979525459,0.00037552,87514.0,87513.0,0.96673101]
[1765979525884,0.00037552,87514.0,87513.0,0.96873101]
[1765979526102,0.00037552,87514.0,87513.0,0.97073101]
[1765979534370,0.00037552,87514.0,87513.0,0.62809354]
[1765979534515,0.00037552,87514.0,87513.0,0.70348344]
[1765979534718,0.22891038,87514.0,87513.0,0.70348344]
[1765979534918,0.22891038,87514.0,87513.0,0.63778354]
[1765979536779,0.22891038,87514.0,87513.0,0.63578354]
[1765979537126,0.22891038,87514.0,87513.0,0.63678354]
[1765979537327,0.22891038,87514.0,87513.0,0.63578354]
[1765979537556,0.22891038,87514.0,87513.0,0.63438]
[1765979537711,0.54729038,87514.0,87513.0,0.52128]
[1765979537914,0.54729038,87514.0,87513.0,0.503]
[1765979538130,0.54729038,87514.0,87513.0,0.52128]
[1765979538539,0.57497038,87514.0,87513.0,0.52128]
[1765979539412,0.57497038,87514.0,87513.0,0.51828]
[1765979539789,0.57497038,87514.0,87513.0,0.52028]
[1765979540133,0.57497038,87514.0,87513.0,0.267]
[1765979540343,0.57497038,87514.0,87513.0,0.265]
[1765979540515,0.57797038,87514.0,87513.0,0.265]
[1765979541291,0.57597038,87514.0,87513.0,0.265]
[1765979541524,0.57797038,87514.0,87513.0,0.265]
[1765979541736,0.57797038,87514.0,87513.0,0.26425378]
[1765979541937,0.57697038,87514.0,87513.0,0.26425378]
[1765979542251,0.57797038,87514.0,87513.0,0.21319378]
[1765979542456,2.62798877,87514.0,87513.0,0.21319378]
[1765979546089,2.57797038,87514.0,87513.0,0.21319378]
[1765979546924,2.62798877,87514.0,87513.0,0.21319378]
[1765979547395,2.55029038,87514.0,87513.0,0.21319378]
[1765979547604,2.55029038,87514.0,87513.0,0.34557378]
[1765979547605,0.23191038,87514.0,87513.0,0.34557378]
[1765979548148,0.52161038,87514.0,87513.0,0.34557378]
[1765979548347,0.23091038,87514.0,87513.0,0.34557378]
[1765979548525,0.23191038,87514.0,87513.0,0.34557378]
[1765979548947,0.52261038,87514.0,87513.0,0.34557378]
[1765979549141,0.51961038,87514.0,87513.0,0.34557378]
[1765979549329,0.52161038,87514.0,87513.0,0.46574378]
[1765979549533,0.52161038,87514.0,87513.0,0.34557378]
[1765979549700,0.51961038,87514.0,87513.0,0.34557378]
[1765979550530,0.52061038,87514.0,87513.0,0.34557378]
[1765979550814,0.51961038,87514.0,87513.0,0.34557378]
[1765979551460,0.51961038,87514.0,87513.0,0.34657378]
[1765979553342,0.29107552,87514.0,87513.0,0.46814732]
[1765979553543,0.29107552,87514.0,87513.0,0.69668479]
[1765979553746,0.54729038,87514.0,87513.0,0.21559732]
[1765979553985,0.51961038,87514.0,87513.0,0.34797732]
[1765979554174,0.29107552,87514.0,87513.0,0.46814732]
[1765979554348,0.51961038,87514.0,87513.0,0.46814732]
[1765979554884,0.51961038,87514.0,87513.0,0.46714732]
[1765979555496,0.29107552,87514.0,87513.0,0.46714732]
[1765979555709,0.29107552,87514.0,87513.0,0.69568479]
[1765979555710,0.00037552,87514.0,87513.0,0.69568479]
[1765979555906,0.00137552,87514.0,87513.0,0.69568479]
[1765979557116,0.00137552,87514.0,87513.0,0.69668479]
[1765979558605,0.00037552,87514.0,87513.0,0.69668479]
[1765979559229,0.00037552,87514.0,87513.0,0.70068479]
[1765979559434,0.00037552,87514.0,87513.0,0.69968479]
[1765979559806,0.00037552,87514.0,87513.0,0.70368479]
[1765979561642,0.00037552,87514.0,87513.0,0.69968479]
[1765979561839,0.00037552,87514.0,87513.0,0.70368479]
[1765979562454,0.00037552,87514.0,87513.0,0.69968479]
[1765979562696,0.00037552,87514.0,87513.0,0.74570318]
[1765979562865,0.00037552,87514.0,87513.0,0.74970318]
[1765979563064,0.00037552,87514.0,87513.0,0.75270318]
[1765979563266,0.00037552,87514.0,87513.0,0.74970318]
[1765979563635,0.00037552,87514.0,87513.0,1.75270318]
[1765979564733,0.2907,87546.0,87545.0,0.43825399]
[1765979564934,0.22841376,87561.0,87545.0,0.43825399]
[1765979564935,0.01142047,87562.0,87561.0,0.23128]
[1765979565252,0.23983065,87562.0,87561.0,0.24952]
[1765979565462,0.23983065,87562.0,87561.0,0.25092354]
[1765979566691,0.51910829,87563.0,87562.0,0.23128]
[1765979566919,0.51910829,87563.0,87562.0,0.16243]
[1765979567260,0.2907,87563.0,87562.0,0.16243]
[1765979567585,0.51910697,87563.0,87562.0,0.04833]
[1765979567816,0.51910697,87563.0,87562.0,0.10534006]
[1765979568001,0.2907,87563.0,87562.0,0.1755936]
[1765979568152,0.51910697,87563.0,87562.0,0.1067436]
[1765979568352,0.01142165,87553.0,87547.0,0.01142243]
[1765979568579,0.23983005,87562.0,87561.0,0.23128]
[1765979568791,0.53053005,87562.0,87561.0,0.24952]
[1765979570035,0.53053005,87562.0,87561.0,0.18067]
[1765979570036,0.53153005,87562.0,87561.0,0.18067]
[1765979570212,0.53053005,87562.0,87561.0,0.18067]
[1765979570410,0.53053005,87562.0,87561.0,0.13234]
[1765979570992,0.51912262,87557.0,87556.0,0.14971]
[1765979571198,0.51912262,87557.0,87556.0,0.28513]
[1765979572216,0.2907,87557.0,87556.0,0.28513]
[1765979572799,0.51912262,87557.0,87556.0,0.28613]
[1765979573004,0.2907,87557.0,87556.0,0.28613]
[1765979573182,0.2907,87557.0,87556.0,0.51455523]
[1765979573388,0.2907,87557.0,87556.0,0.51595877]
[1765979574222,0.32502653,87574.0,87573.0,0.23128]
[1765979574426,0.2907,87574.0,87573.0,0.24952]
[1765979574626,0.2907,87574.0,87573.0,0.47790089]
[1765979574851,0.2907,87574.0,87573.0,0.24952]
[1765979575053,0.51907828,87574.0,87573.0,0.24952]
[1765979575459,0.2907,87574.0,87573.0,0.24963295]
[1765979575655,0.52107828,87574.0,87573.0,0.24963295]
[1765979575857,0.2927,87574.0,87573.0,0.24963295]
[1765979576085,0.52107828,87574.0,87573.0,0.24963295]
[1765979576216,0.52107828,87574.0,87573.0,0.18078295]
[1765979577062,0.002,87574.0,87573.0,0.47941738]
[1765979578250,0.002,87574.0,87573.0,0.48041738]
[1765979578651,0.2907,87577.0,87576.0,0.45965307]
[1765979578851,0.2907,87579.0,87577.0,0.23978898]
[1765979579080,0.2907,87579.0,87578.0,0.23128]
[1765979579499,0.2907,87579.0,87578.0,0.46105139]
[1765979579825,0.51906524,87579.0,87578.0,0.23268354]
[1765979580017,0.51906126,87581.0,87580.0,0.23128]
[1765979580199,0.302118,87581.0,87580.0,0.23128]
[1765979580604,0.00099999,87590.0,87589.0,0.08394]
[1765979580810,0.53046159,87587.0,87586.0,0.1141]
[1765979581141,0.53046159,87587.0,87586.0,0.25092354]
[1765979581142,0.2907,87587.0,87586.0,0.25092354]
[1765979581271,0.23973771,87596.0,87595.0,0.26689]
[1765979581678,0.01141487,87605.0,87599.0,0.1141]
[1765979581983,0.01141487,87605.0,87580.0,0.49753293]
[1765979581984,0.01141813,87580.0,87579.0,0.1141]
[1765979582189,0.30211813,87580.0,87579.0,0.13234]
[1765979582522,0.2907,87580.0,87579.0,0.47928878]
[1765979582691,0.22833814,87590.0,87588.0,0.03561]
[1765979582890,0.2907,87590.0,87589.0,0.12358006]
[1765979583096,0.51903656,87590.0,87589.0,0.19243006]
[1765979583782,0.30211787,87582.0,87581.0,0.1141]
[1765979584007,0.51905221,87584.0,87583.0,0.23128]
[1765979584221,0.2907,87584.0,87583.0,0.23268354]
[1765979584640,0.51905221,87584.0,87583.0,0.23268354]
[1765979584849,0.51905221,87584.0,87583.0,0.25092354]
[1765979585057,0.51905221,87584.0,87573.0,0.00011295]
[1765979585058,0.23979176,87576.0,87575.0,0.04919]
[1765979585266,0.55817176,87576.0,87575.0,0.13234]
[1765979586483,0.53049176,87576.0,87575.0,0.13234]
[1765979587508,0.57443828,87574.0,87573.0,0.00011295]
[1765979587833,0.57443828,87574.0,87573.0,0.01835295]
[1765979589023,0.57443828,87574.0,87573.0,0.00011295]
[1765979589684,0.57543828,87574.0,87573.0,0.00011295]
[1765979589905,0.60976815,87574.0,87573.0,0.00011295]
[1765979590123,2.61076815,87574.0,87573.0,2.95e-06]
[1765979590545,2.60976815,87574.0,87573.0,2.95e-06]
[1765979590965,2.61176815,87574.0,87573.0,2.95e-06]
[1765979593397,2.9735788,87574.0,87573.0,2.95e-06]
[1765979593825,2.85811802,87574.0,87573.0,2.95e-06]
[1765979594279,3.09941802,87574.0,87573.0,2.95e-06]
[1765979594764,2.91776622,87574.0,87573.0,2.95e-06]
[1765979595735,2.91676622,87574.0,87573.0,2.95e-06]
[1765979595935,2.92176622,87574.0,87573.0,2.95e-06]
[1765979596174,2.91776622,87574.0,87573.0,2.95e-06]
[1765979596318,2.91276622,87574.0,87573.0,2.95e-06]
[1765979596522,2.91976622,87574.0,87573.0,2.95e-06]
[1765979597163,2.52368783,87574.0,87573.0,2.95e-06]
[1765979597382,2.57904783,87574.0,87573.0,2.95e-06]
[1765979597590,2.86974783,87574.0,87573.0,2.95e-06]
[1765979598209,0.81438783,87574.0,87573.0,2.95e-06]
[1765979598415,0.007,87574.0,87573.0,0.23275295]
[1765979598622,0.007,87574.0,87573.0,0.46253738]
[1765979599031,0.00099999,87600.0,87599.0,0.1141]
[1765979599243,0.02768,87615.0,87601.0,0.26801]
[1765979599244,0.00099999,87610.0,87601.0,0.26801]
[1765979599449,0.011415,87604.0,87601.0,0.11550354]
[1765979599689,0.23971701,87604.0,87601.0,0.13234]
[1765979599910,0.01141474,87606.0,87594.0,0.1141]
[1765979599911,0.01141617,87595.0,87594.0,0.1141]
[1765979600059,0.01141578,87598.0,87594.0,0.1141]
[1765979600060,0.01141591,87597.0,87596.0,0.05701006]
[1765979600262,0.23973423,87597.0,87596.0,0.05701006]
[1765979600503,9.016e-05,87597.0,87596.0,0.1141]
[1765979600804,9.016e-05,87597.0,87596.0,0.16248354]
[1765979601104,9.016e-05,87597.0,87596.0,0.23415354]
[1765979601261,9.016e-05,87597.0,87596.0,0.11550354]
[1765979601875,0.03477016,87597.0,87596.0,0.1141]
[1765979602058,0.03477016,87597.0,87596.0,0.13234]
[1765979602297,9.016e-05,87597.0,87596.0,0.13234]
[1765979602410,9.016e-05,87597.0,87596.0,0.13334]
[1765979602615,0.0919876,87597.0,87596.0,0.001]
[1765979602812,2.0919876,87597.0,87596.0,0.001]
[1765979603015,2.06945016,87597.0,87596.0,0.001]
[1765979603279,0.06945016,87597.0,87596.0,0.001]
[1765979603434,9.016e-05,87597.0,87596.0,0.1151]
[1765979603641,0.29079016,87597.0,87596.0,0.1151]
[1765979603845,0.32547016,87597.0,87596.0,0.1151]
[1765979604040,0.29079016,87597.0,87596.0,0.1151]
[1765979604676,9.016e-05,87597.0,87596.0,0.16208]
[1765979604874,9.016e-05,87597.0,87596.0,0.23375]
[1765979605109,9.016e-05,87597.0,87596.0,0.23515354]
[1765979605483,9.016e-05,87597.0,87596.0,0.00240354]
[1765979605723,9.016e-05,87597.0,87596.0,0.13474354]
[1765979607297,0.0226276,87597.0,87596.0,0.13474354]
[1765979607475,9.016e-05,87597.0,87596.0,0.13474354]
[1765979607845,0.0919876,87597.0,87596.0,0.13334]
[1765979608010,0.06945016,87597.0,87596.0,0.07625006]
[1765979608214,0.03477016,87597.0,87596.0,0.01924]
[1765979608440,0.0573076,87597.0,87596.0,0.07625006]
[1765979608706,0.03477016,87597.0,87596.0,0.07625006]
[1765979608907,2.36015016,87597.0,87596.0,0.00074]
[1765979610048,2.39447339,87597.0,87596.0,0.00074]
[1765979610246,0.26303742,87582.0,87581.0,0.01824]
[1765979610395,0.58841742,87582.0,87581.0,0.01824]
[1765979611549,2.58841742,87582.0,87581.0,0.01824]
[1765979612028,0.55376089,87573.0,87572.0,0.1141]
[1765979612231,0.51912001,87558.0,87557.0,0.15076354]
[1765979612397,0.51912001,87558.0,87557.0,0.13374354]
[1765979613067,0.51912001,87558.0,87557.0,0.13234]
[1765979613204,0.51912001,87558.0,87557.0,0.1141]
[1765979613406,0.51912001,87558.0,87557.0,0.13545295]
[1765979613617,0.51912001,87558.0,87557.0,0.13745295]
[1765979614016,0.51912001,87558.0,87557.0,0.13545295]
[1765979614255,0.55380001,87558.0,87557.0,0.13545295]
[1765979614457,0.55380001,87558.0,87557.0,0.13745295]
[1765979614771,0.55380001,87558.0,87557.0,0.13445295]
[1765979614950,0.51912001,87558.0,87557.0,0.06807295]
[1765979615154,0.51912001,87558.0,87557.0,0.13645295]
[1765979615801,0.51912001,87558.0,87557.0,0.25810295]
[1765979616080,0.55380001,87558.0,87557.0,0.02235295]
[1765979616777,0.58848001,87558.0,87557.0,0.02235295]
[1765979617198,0.58848001,87558.0,87557.0,0.02035295]
[1765979617970,0.58848001,87558.0,87557.0,0.01835295]
[1765979618171,0.58848001,87558.0,87557.0,0.02035295]
[1765979618375,0.58848001,87558.0,87557.0,0.02135295]
[1765979618577,0.58848001,87558.0,87557.0,0.01935295]
[1765979618578,0.55380001,87558.0,87557.0,0.01935295]
[1765979618782,0.58848001,87558.0,87557.0,0.01935295]
[1765979618984,0.58948001,87558.0,87557.0,0.01935295]
[1765979619365,0.62381483,87558.0,87557.0,0.01935295]
[1765979619564,0.62381483,87558.0,87557.0,0.01835295]
[1765979619915,0.52112001,87558.0,87557.0,0.16854295]
[1765979620686,0.52012001,87558.0,87557.0,0.16854295]
[1765979621120,0.51912001,87558.0,87557.0,0.16954295]
[1765979621332,0.01142074,87560.0,87559.0,0.23575]
[1765979621523,0.22841736,87561.0,87560.0,0.1141]
[1765979621728,0.51911736,87561.0,87560.0,0.1141]
[1765979622214,0.2907,87561.0,87560.0,0.46556834]
[1765979622648,0.2907,87561.0,87560.0,0.46656834]
[1765979624508,0.2907,87561.0,87560.0,0.46756834]
[1765979625746,0.55379219,87561.0,87560.0,0.1161]
[1765979625943,0.55379219,87561.0,87560.0,0.13434]
[1765979626599,0.58847219,87561.0,87560.0,0.002]
[1765979627019,0.55379219,87561.0,87560.0,0.002]
[1765979627788,0.56154019,87561.0,87560.0,0.002]
[1765979628506,0.59622019,87561.0,87560.0,0.002]
[1765979628690,2.59622019,87561.0,87560.0,0.002]
[1765979629318,2.56154019,87561.0,87560.0,0.002]
[1765979629545,0.56154019,87561.0,87560.0,0.1161]
[1765979630151,0.59622019,87561.0,87560.0,0.1161]
[1765979630321,0.59622019,87561.0,87560.0,0.002]
[1765979631683,0.52686019,87561.0,87560.0,0.002]
[1765979631841,0.52686019,87561.0,87560.0,0.1161]
[1765979632251,0.007748,87561.0,87560.0,0.23775]
[1765979632679,0.298448,87561.0,87560.0,0.23775]
[1765979632878,0.298448,87561.0,87560.0,0.4661648]
[1765979633082,0.298448,87561.0,87560.0,0.23775]
[1765979633302,0.298448,87561.0,87560.0,0.46656834]
[1765979633709,0.298448,87561.0,87560.0,0.46756834]
[1765979634280,0.298448,87561.0,87560.0,0.46656834]
[1765979634631,0.298448,87561.0,87560.0,0.46856834]
[1765979635723,0.52686019,87561.0,87560.0,0.16622354]
[1765979635899,0.52686019,87561.0,87560.0,0.11850354]
[1765979636114,0.298448,87561.0,87560.0,0.11850354]